bitfinex-derivatives/quotes_BTCF0:USTF0_20251213
["timestamp","ask_amount","ask_price","bid_price","bid_amount"]
[1765587219408,0.11453804,90385.0,90384.0,0.021]
[1765587224516,0.47533804,90385.0,90384.0,0.021]
[1765587225713,0.11453804,90385.0,90384.0,0.021]
[1765587226317,0.47533804,90385.0,90384.0,0.021]
[1765587236839,0.47561878,90385.0,90384.0,0.021]
[1765587242128,0.47561878,90385.0,90384.0,0.04849]
[1765587242326,0.47561878,90385.0,90384.0,0.021]
[1765587243532,0.47561878,90385.0,90384.0,0.07611]
[1765587243921,0.46455598,90385.0,90384.0,0.07611]
[1765587245331,0.39271598,90385.0,90384.0,0.07611]
[1765587245734,0.42089598,90385.0,90384.0,0.07611]
[1765587245937,0.44999598,90385.0,90384.0,0.07611]
[1765587246432,0.44439165,90385.0,90384.0,0.07611]
[1765587252537,0.08359165,90385.0,90384.0,0.07611]
[1765587255423,0.05541165,90385.0,90384.0,0.07611]
[1765587255737,0.02631165,90385.0,90384.0,0.07611]
[1765587258039,0.05449165,90385.0,90384.0,0.07611]
[1765587260144,0.08359165,90385.0,90384.0,0.07611]
[1765587278174,0.08359165,90385.0,90384.0,0.43691]
[1765587278774,0.08359165,90385.0,90384.0,0.07611]
[1765587278976,0.08359165,90385.0,90384.0,0.43691]
[1765587283385,0.08359165,90385.0,90384.0,0.07611]
[1765587283585,0.08359165,90385.0,90384.0,0.43691]
[1765587289583,0.08359165,90385.0,90384.0,0.07611]
[1765587289778,0.08359165,90385.0,90384.0,0.43691]
[1765587292387,0.08359165,90385.0,90384.0,0.07611]
[1765587292686,0.08359165,90385.0,90384.0,0.43691]
[1765587301786,0.05449165,90385.0,90384.0,0.43691]
[1765587301983,0.08284165,90385.0,90384.0,0.43691]
[1765587302488,0.02631165,90385.0,90384.0,0.43691]
[1765587302878,0.07386,90400.0,90399.0,0.0567]
[1765587303082,0.07386,90400.0,90399.0,0.0677611]
[1765587305000,0.07586,90400.0,90399.0,0.0847611]
[1765587305299,0.001,90400.0,90399.0,0.0757611]
[1765587305496,0.002,90400.0,90399.0,0.0857611]
[1765587305698,0.001,90400.0,90399.0,0.0777611]
[1765587305992,0.002,90400.0,90399.0,0.0867611]
[1765587306296,0.03102,90400.0,90399.0,0.0867611]
[1765587306598,0.05937,90400.0,90399.0,0.0867611]
[1765587310096,0.07586,90400.0,90399.0,0.0867611]
[1765587314998,0.0995485,90400.0,90399.0,0.0867611]
[1765587325804,0.0256885,90400.0,90399.0,0.0867611]
[1765587327612,0.0532985,90400.0,90399.0,0.0867611]
[1765587332519,0.0815085,90400.0,90399.0,0.0867611]
[1765587332814,0.11751325,90400.0,90399.0,0.0867611]
[1765587333018,0.14120175,90400.0,90399.0,0.0867611]
[1765587334717,0.15839175,90400.0,90399.0,0.0867611]
[1765587336820,0.15839175,90400.0,90399.0,0.4475611]
[1765587337019,0.0986985,90400.0,90399.0,0.4475611]
[1765587338521,0.0986985,90400.0,90399.0,0.0867611]
[1765587338725,0.0986985,90400.0,90399.0,0.4475611]
[1765587344527,0.0256885,90400.0,90399.0,0.4475611]
[1765587345026,0.0815085,90400.0,90399.0,0.4475611]
[1765587345327,0.0986985,90400.0,90399.0,0.4475611]
[1765587351528,0.0986985,90400.0,90399.0,0.0867611]
[1765587360739,0.0976985,90400.0,90399.0,0.0777611]
[1765587361227,0.0966985,90400.0,90399.0,0.0677611]
[1765587362532,0.07301,90400.0,90399.0,0.0677611]
[1765587364139,0.07301,90400.0,90399.0,0.02937]
[1765587364330,0.05609,90387.0,90386.0,0.24194057]
[1765587365029,0.07980688,90387.0,90386.0,0.1622127]
[1765587367438,0.07980688,90387.0,90386.0,0.1893127]
[1765587370140,0.07980688,90387.0,90386.0,0.0674127]
[1765587371240,0.05609,90387.0,90386.0,0.0674127]
[1765587372241,0.07979663,90387.0,90386.0,0.0674127]
[1765587382241,0.05609,90387.0,90386.0,0.0674127]
[1765587384350,0.07979717,90387.0,90386.0,0.0674127]
[1765587401760,0.07979717,90387.0,90386.0,0.12715096]
[1765587411962,0.07979717,90387.0,90386.0,0.0674127]
[1765587412164,0.07979717,90387.0,90386.0,0.12715096]
[1765587412365,0.0683031,90383.0,90382.0,0.41321903]
[1765587412551,0.09201027,90383.0,90382.0,0.41321903]
[1765587412758,0.09201027,90383.0,90382.0,0.05241903]
[1765587413267,0.05724,90379.0,90378.0,0.80856826]
[1765587413469,0.08094717,90379.0,90378.0,0.80856826]
[1765587415168,0.05724,90379.0,90378.0,0.74883]
[1765587415379,0.08074353,90379.0,90378.0,0.74883]
[1765587416166,0.05724,90379.0,90378.0,0.74883]
[1765587417166,0.08073878,90379.0,90378.0,0.74883]
[1765587421859,0.0853737,90378.0,90377.0,0.0110638]
[1765587422060,0.10887248,90378.0,90377.0,0.0110638]
[1765587422469,0.10887248,90378.0,90377.0,0.0403938]
[1765587422671,0.10887248,90378.0,90377.0,0.0694138]
[1765587427376,0.11436221,90378.0,90377.0,0.0694138]
[1765587432182,0.09086343,90378.0,90377.0,0.0694138]
[1765587434774,0.11449979,90378.0,90377.0,0.05835]
[1765587453598,0.07287,90376.0,90375.0,0.69068602]
[1765587453793,0.09650636,90376.0,90375.0,0.69068602]
[1765587453995,0.09650636,90376.0,90375.0,0.03007602]
[1765587454297,0.09650636,90376.0,90375.0,0.05951602]
[1765587464192,0.09650636,90376.0,90375.0,0.00016602]
[1765587464403,0.09650636,90376.0,90375.0,0.03007602]
[1765587464701,0.09650636,90376.0,90375.0,0.00016602]
[1765587467403,0.45730636,90376.0,90375.0,0.00016602]
[1765587467704,0.09650636,90376.0,90375.0,0.00016602]
[1765587467906,0.45730636,90376.0,90375.0,0.00016602]
[1765587472411,0.09650636,90376.0,90375.0,0.00016602]
[1765587472709,0.45730636,90376.0,90375.0,0.00016602]
[1765587473512,0.09650636,90376.0,90375.0,0.00016602]
[1765587473713,0.45730636,90376.0,90375.0,0.00016602]
[1765587482120,0.45730636,90376.0,90375.0,0.05823602]
[1765587486718,0.45730636,90376.0,90375.0,0.03011602]
[1765587488226,0.45730636,90376.0,90375.0,0.05823602]
[1765587489628,0.09650636,90376.0,90375.0,0.05823602]
[1765587489818,0.45730636,90376.0,90375.0,0.05823602]
[1765587492521,0.09650636,90376.0,90375.0,0.05823602]
[1765587492728,0.45730636,90376.0,90375.0,0.05823602]
[1765587512129,0.45730636,90376.0,90375.0,0.00016602]
[1765587514326,0.45730636,90376.0,90375.0,0.02883602]
[1765587522130,0.45730636,90376.0,90375.0,0.05766602]
[1765587522331,0.09650636,90376.0,90375.0,0.05766602]
[1765587522637,0.45730636,90376.0,90375.0,0.05766602]
[1765587525138,0.45730636,90376.0,90375.0,0.02883602]
[1765587531536,0.45730636,90376.0,90375.0,0.05766602]
[1765587537046,0.09650636,90376.0,90375.0,0.05766602]
[1765587552371,0.15621475,90376.0,90375.0,0.05766602]
[1765587562377,0.09650636,90376.0,90375.0,0.05766602]
[1765587565777,0.09650636,90376.0,90375.0,0.00016602]
[1765587577387,0.09650636,90376.0,90375.0,0.05740602]
[1765587577571,0.09650636,90376.0,90375.0,0.00016602]
[1765587592797,0.09650636,90376.0,90375.0,0.02731602]
[1765587594297,0.09650636,90376.0,90375.0,0.05702602]
[1765587595193,0.07287,90376.0,90375.0,0.05702602]
[1765587595389,0.09662685,90376.0,90375.0,0.05702602]
[1765587595790,0.09662685,90376.0,90375.0,0.02731602]
[1765587600496,0.09662685,90376.0,90375.0,0.00016602]
[1765587601309,0.09662685,90376.0,90375.0,0.05702602]
[1765587607315,0.02375685,90376.0,90375.0,0.05702602]
[1765587608906,0.09673685,90376.0,90375.0,0.05702602]
[1765587610216,0.09673685,90376.0,90375.0,0.41782602]
[1765587614319,0.02375685,90376.0,90375.0,0.41782602]
[1765587619828,0.05115685,90376.0,90375.0,0.41782602]
[1765587621332,0.02375685,90376.0,90375.0,0.41782602]
[1765587623123,0.07373,90380.0,90379.0,0.05594]
[1765587623322,0.09723907,90380.0,90379.0,0.05594]
[1765587624433,0.09723907,90380.0,90379.0,0.0670036]
[1765587671880,0.07373,90380.0,90379.0,0.10685464]
[1765587692498,0.07373,90380.0,90379.0,0.0670036]
[1765587695794,0.07373,90380.0,90379.0,0.05594]
[1765587696796,0.0863939,90376.0,90375.0,0.00016602]
[1765587697194,0.14613032,90376.0,90375.0,0.00016602]
[1765587697592,0.0863939,90376.0,90375.0,0.00016602]
[1765587697797,0.14613032,90376.0,90375.0,0.00016602]
[1765587698400,0.0863939,90376.0,90375.0,0.00016602]
[1765587701802,0.10981271,90376.0,90375.0,0.00016602]
[1765587704801,0.07533,90362.0,90361.0,0.18163826]
[1765587705002,0.07533,90362.0,90361.0,0.14985]
[1765587705194,0.07533,90362.0,90361.0,0.17739]
[1765587705704,0.07533,90362.0,90361.0,0.05549]
[1765587706202,0.08433,90362.0,90361.0,0.05649]
[1765587714908,0.08433,90362.0,90361.0,0.41729]
[1765587720312,0.08433,90362.0,90361.0,0.47702826]
[1765587723308,0.08433,90362.0,90361.0,0.41729]
[1765587742429,0.1079491,90362.0,90361.0,0.41729]
[1765587746033,0.1079491,90362.0,90361.0,0.05649]
[1765587746232,0.1079491,90362.0,90361.0,0.41729]
[1765587752439,0.08433,90362.0,90361.0,0.41729]
[1765587754957,0.10794939,90362.0,90361.0,0.41729]
[1765587756046,0.10794939,90362.0,90361.0,0.05649]
[1765587756248,0.10794939,90362.0,90361.0,0.41729]
[1765587756446,0.03261939,90362.0,90361.0,0.41729]
[1765587756754,0.009,90362.0,90361.0,0.41729]
[1765587766864,0.0362,90362.0,90361.0,0.41729]
[1765587767451,0.009,90362.0,90361.0,0.41729]
[1765587770662,0.06367,90362.0,90361.0,0.05649]
[1765587770965,0.06367,90362.0,90361.0,0.41729]
[1765587772767,0.0362,90362.0,90361.0,0.41729]
[1765587775467,0.06367,90362.0,90361.0,0.41729]
[1765587775665,0.08026,90362.0,90361.0,0.41729]
[1765587780371,0.08026,90362.0,90361.0,1.10793]
[1765587780671,0.10393284,90362.0,90361.0,1.10793]
[1765587781372,0.08026,90362.0,90361.0,1.10793]
[1765587781762,0.009,90362.0,90361.0,1.10793]
[1765587782365,0.03267218,90362.0,90361.0,1.10793]
[1765587788776,0.03267218,90362.0,90361.0,1.22983]
[1765587791480,0.03267218,90362.0,90361.0,1.59063]
[1765587792179,0.03250608,90362.0,90361.0,1.6504046]
[1765587792570,0.0088339,90362.0,90361.0,1.59063]
[1765587793371,0.0088339,90362.0,90361.0,1.64332387]
[1765587794781,0.0088339,90362.0,90361.0,1.64306807]
[1765587795975,0.0088339,90362.0,90361.0,1.59063]
[1765587797382,0.0088339,90362.0,90361.0,1.64313561]
[1765587797782,0.0088339,90362.0,90361.0,1.64293314]
[1765587799678,0.0088339,90362.0,90361.0,1.64332554]
[1765587800384,0.0088339,90362.0,90361.0,1.59063]
[1765587800685,0.0088339,90362.0,90361.0,1.64332554]
[1765587801182,0.0088339,90362.0,90361.0,1.59063]
[1765587801390,0.0088339,90362.0,90361.0,1.64381204]
[1765587801977,0.0088339,90362.0,90361.0,1.64300481]
[1765587803081,0.0088339,90362.0,90361.0,1.64316695]
[1765587803693,0.0088339,90362.0,90361.0,1.59063]
[1765587803889,0.0088339,90362.0,90361.0,1.64316695]
[1765587806090,0.0088339,90362.0,90361.0,1.64242709]
[1765587806780,0.0088339,90362.0,90361.0,1.59063]
[1765587806982,0.0088339,90362.0,90361.0,1.64242709]
[1765587807282,0.0088339,90362.0,90361.0,1.64230943]
[1765587808495,0.0088339,90362.0,90361.0,1.59063]
[1765587808694,0.0088339,90362.0,90361.0,1.64259945]
[1765587809789,0.0088339,90362.0,90361.0,1.59063]
[1765587809993,0.0088339,90362.0,90361.0,1.64256721]
[1765587811085,0.0088339,90362.0,90361.0,1.64236417]
[1765587812389,0.0088339,90362.0,90361.0,1.64406968]
[1765587814394,0.0088339,90362.0,90361.0,1.64299875]
[1765587815495,0.0088339,90362.0,90361.0,1.59063]
[1765587816088,0.0283127,90386.0,90370.0,0.0783247]
[1765587816293,0.0283127,90386.0,90370.0,1.18286071]
[1765587816487,0.01725,90386.0,90370.0,1.18286071]
[1765587816886,0.01725,90386.0,90370.0,1.1828137]
[1765587817091,0.01725,90386.0,90370.0,1.1296847]
[1765587817291,0.01725,90386.0,90370.0,1.1828137]
[1765587817493,0.01725,90386.0,90370.0,1.1838137]
[1765587818398,0.01725,90386.0,90370.0,1.18358181]
[1765587818600,0.01725,90386.0,90370.0,1.30548181]
[1765587818799,0.01725,90386.0,90370.0,1.2525847]
[1765587818988,0.01725,90386.0,90370.0,1.38514166]
[1765587819187,0.01725,90386.0,90370.0,1.33224455]
[1765587819996,0.01725,90390.0,90388.0,0.0670125]
[1765587820298,0.44180953,90389.0,90388.0,0.7576125]
[1765587821401,0.44180953,90389.0,90388.0,0.7676125]
[1765587821902,0.41825,90389.0,90388.0,0.7676125]
[1765587823005,0.05745,90389.0,90388.0,0.7676125]
[1765587830098,0.02777,90389.0,90388.0,0.7676125]
[1765587832198,0.05745,90389.0,90388.0,0.7676125]
[1765587832599,0.05745,90389.0,90388.0,1.1284125]
[1765587838115,0.01725,90390.0,90389.0,0.0549]
[1765587838412,0.04635,90390.0,90389.0,0.0549]
[1765587838711,0.07389,90390.0,90389.0,0.0549]
[1765587840315,0.07389,90390.0,90389.0,0.0649]
[1765587841817,0.0166821,90398.0,90397.0,0.0549]
[1765587841818,0.02926602,90398.0,90397.0,0.0549]
[1765587842119,0.02926602,90398.0,90397.0,0.74542]
[1765587842418,0.05680602,90398.0,90397.0,0.74542]
[1765587842623,0.07369602,90398.0,90397.0,0.74542]
[1765587843918,0.07369602,90398.0,90397.0,0.75442]
[1765587844120,0.07077778,90398.0,90397.0,0.75442]
[1765587844718,0.01689,90404.0,90402.0,0.0549]
[1765587844918,0.3899,90403.0,90402.0,0.0549]
[1765587845216,0.41744,90403.0,90402.0,0.0549]
[1765587845415,0.41744,90403.0,90402.0,0.06589586]
[1765587846219,0.41744,90403.0,90402.0,0.07695666]
[1765587846520,0.41744,90403.0,90402.0,0.08495666]
[1765587848111,0.41395273,90403.0,90402.0,0.08495666]
[1765587848309,0.07353,90408.0,90407.0,0.0659602]
[1765587848506,0.07353,90408.0,90407.0,1.1172802]
[1765587849710,0.07353,90408.0,90407.0,1.1252802]
[1765587863626,0.07353,90408.0,90407.0,0.7644802]
[1765587863832,0.07353,90408.0,90407.0,1.1252802]
[1765587868628,0.07118296,90408.0,90407.0,1.1252802]
[1765587869839,0.07118296,90408.0,90407.0,1.1282802]
[1765587870849,0.07118296,90408.0,90407.0,0.4267]
[1765587871034,0.07118296,90408.0,90407.0,0.011]
[1765587871533,0.07118296,90408.0,90407.0,0.06749]
[1765587871739,0.07118296,90408.0,90407.0,0.011]
[1765587881241,0.15079415,90408.0,90407.0,0.011]
[1765587881437,0.07118296,90408.0,90407.0,0.011]
[1765587881746,0.09473518,90408.0,90407.0,0.011]
[1765587889151,0.45553518,90408.0,90407.0,0.011]
[1765587889347,0.09473518,90408.0,90407.0,0.011]
[1765587889554,0.45553518,90408.0,90407.0,0.011]
[1765587905756,0.09473518,90408.0,90407.0,0.011]
[1765587905959,0.45553518,90408.0,90407.0,0.011]
[1765587906866,0.43198296,90408.0,90407.0,0.011]
[1765587907851,0.455789,90408.0,90407.0,0.011]
[1765587908051,0.43198296,90408.0,90407.0,0.011]
[1765587910761,0.51552886,90408.0,90407.0,0.011]
[1765587911366,0.45580768,90408.0,90407.0,0.011]
[1765587928787,0.09500768,90408.0,90407.0,0.011]
[1765587929093,0.45580768,90408.0,90407.0,0.011]
[1765587934491,0.09500768,90408.0,90407.0,0.011]
[1765587934696,0.45580768,90408.0,90407.0,0.011]
[1765587941989,0.51555587,90408.0,90407.0,0.011]
[1765587946913,0.51555587,90408.0,90407.0,0.04057]
[1765587947814,0.51555587,90408.0,90407.0,0.011]
[1765587952610,0.45580768,90408.0,90407.0,0.011]
[1765587969545,0.09500768,90408.0,90407.0,0.011]
[1765587969847,0.45580768,90408.0,90407.0,0.011]
[1765587974454,0.45580768,90408.0,90407.0,0.03968]
[1765587977760,0.45580768,90408.0,90407.0,0.011]
[1765587991773,0.09500768,90408.0,90407.0,0.011]
[1765587991973,0.45580768,90408.0,90407.0,0.011]
[1765588002375,0.09500768,90408.0,90407.0,0.011]
[1765588002679,0.45580768,90408.0,90407.0,0.011]
[1765588017696,0.09500768,90408.0,90407.0,0.011]
[1765588017896,0.45580768,90408.0,90407.0,0.011]
[1765588018095,0.09500768,90408.0,90407.0,0.011]
[1765588018398,0.09456375,90408.0,90407.0,0.011]
[1765588018697,0.45536375,90408.0,90407.0,0.011]
[1765588022500,0.09456375,90408.0,90407.0,0.011]
[1765588022799,0.45536375,90408.0,90407.0,0.011]
[1765588027590,0.09456375,90408.0,90407.0,0.011]
[1765588027793,0.45536375,90408.0,90407.0,0.011]
[1765588056517,0.45536375,90408.0,90407.0,0.06706]
[1765588058112,0.09456375,90408.0,90407.0,0.06706]
[1765588058424,0.45536375,90408.0,90407.0,0.06706]
[1765588065726,0.45536375,90408.0,90407.0,0.03933]
[1765588067332,0.45536375,90408.0,90407.0,0.011]
[1765588067832,0.45536375,90408.0,90407.0,0.03933]
[1765588068133,0.45536375,90408.0,90407.0,0.06706]
[1765588068931,0.45536375,90408.0,90407.0,0.03933]
[1765588071228,0.45536375,90408.0,90407.0,0.011]
[1765588071722,0.45536375,90408.0,90407.0,0.04058]
[1765588073033,0.45536375,90408.0,90407.0,0.011]
[1765588074728,0.45536375,90408.0,90407.0,0.04058]
[1765588074932,0.45536375,90408.0,90407.0,0.011]
[1765588079435,0.45558046,90408.0,90407.0,0.011]
[1765588097051,0.45558046,90408.0,90407.0,0.07054]
[1765588099550,0.45558046,90408.0,90407.0,0.04058]
[1765588100651,0.45558046,90408.0,90407.0,0.011]
[1765588100948,0.45545693,90408.0,90407.0,0.011]
[1765588109746,1.14589693,90408.0,90407.0,0.011]
[1765588112551,1.14589693,90408.0,90407.0,0.0395]
[1765588112940,1.14589693,90408.0,90407.0,0.011]
[1765588119560,1.14589693,90408.0,90407.0,0.0395]
[1765588122553,1.14589693,90408.0,90407.0,0.06696]
[1765588129559,1.14589693,90408.0,90407.0,0.011]
[1765588145178,1.14589693,90408.0,90407.0,0.03925]
[1765588145570,1.14589693,90408.0,90407.0,0.06716]
[1765588146478,1.12242296,90408.0,90407.0,0.06716]
[1765588146663,1.14578856,90408.0,90407.0,0.06716]
[1765588152064,1.12242296,90408.0,90407.0,0.06716]
[1765588152570,1.20210618,90408.0,90407.0,0.06716]
[1765588155273,1.20310618,90408.0,90407.0,0.07916]
[1765588162585,1.12342296,90408.0,90407.0,0.07916]
[1765588163486,0.76262296,90408.0,90407.0,0.07916]
[1765588163678,1.12342296,90408.0,90407.0,0.07916]
[1765588189410,1.18317086,90408.0,90407.0,0.07916]
[1765588192619,1.12342296,90408.0,90407.0,0.07916]
[1765588201821,1.12342296,90408.0,90407.0,0.023]
[1765588205038,0.76262296,90408.0,90407.0,0.023]
[1765588205231,1.12342296,90408.0,90407.0,0.023]
[1765588207536,1.12342296,90408.0,90407.0,0.021]
[1765588208138,1.12242296,90408.0,90407.0,0.011]
[1765588208337,1.12342296,90408.0,90407.0,0.021]
[1765588212428,0.76262296,90408.0,90407.0,0.021]
[1765588212628,1.12342296,90408.0,90407.0,0.021]
[1765588217542,0.76262296,90408.0,90407.0,0.021]
[1765588217735,1.12342296,90408.0,90407.0,0.021]
[1765588219338,0.76262296,90408.0,90407.0,0.021]
[1765588219538,1.12342296,90408.0,90407.0,0.021]
[1765588221039,0.76262296,90408.0,90407.0,0.021]
[1765588221241,1.12342296,90408.0,90407.0,0.021]
[1765588236440,0.76262296,90408.0,90407.0,0.021]
[1765588236647,1.12342296,90408.0,90407.0,0.021]
[1765588246957,1.12342296,90408.0,90407.0,0.05044]
[1765588248053,1.12342296,90408.0,90407.0,0.07748]
[1765588248261,1.12342296,90408.0,90407.0,0.05044]
[1765588250448,1.12342296,90408.0,90407.0,0.021]
[1765588252154,1.12342296,90408.0,90407.0,0.05044]
[1765588257862,1.12342296,90408.0,90407.0,0.021]
[1765588259561,0.76262296,90408.0,90407.0,0.021]
[1765588259750,1.12342296,90408.0,90407.0,0.021]
[1765588261447,0.76262296,90408.0,90407.0,0.021]
[1765588261653,1.12342296,90408.0,90407.0,0.021]
[1765588262763,0.76262296,90408.0,90407.0,0.021]
[1765588262966,1.12342296,90408.0,90407.0,0.021]
[1765588277765,0.76262296,90408.0,90407.0,0.021]
[1765588278070,1.12342296,90408.0,90407.0,0.021]
[1765588278370,0.76262296,90408.0,90407.0,0.021]
[1765588278571,1.12342296,90408.0,90407.0,0.021]
[1765588280364,1.14685576,90408.0,90407.0,0.021]
[1765588280569,0.78605576,90408.0,90407.0,0.021]
[1765588280874,1.14685576,90408.0,90407.0,0.021]
[1765588307202,1.14685576,90408.0,90407.0,0.07947]
[1765588314203,1.20660912,90408.0,90407.0,0.07947]
[1765588318520,1.14685576,90408.0,90407.0,0.07947]
[1765588320019,1.20660912,90408.0,90407.0,0.07947]
[1765588323822,1.20660912,90408.0,90407.0,0.05058]
[1765588324522,1.20660912,90408.0,90407.0,0.04846]
[1765588327016,0.84580912,90408.0,90407.0,0.04846]
[1765588327206,1.20660912,90408.0,90407.0,0.04846]
[1765588332722,1.14685576,90408.0,90407.0,0.04846]
[1765588335624,1.14685576,90408.0,90407.0,0.021]
[1765588340131,1.14685576,90408.0,90407.0,0.04846]
[1765588342828,1.14685576,90408.0,90407.0,0.04902]
[1765588344522,0.78605576,90408.0,90407.0,0.04902]
[1765588344722,1.14685576,90408.0,90407.0,0.04902]
[1765588348330,1.14685576,90408.0,90407.0,0.021]
[1765588353444,1.14685576,90408.0,90407.0,0.04902]
[1765588353638,1.14685576,90408.0,90407.0,0.021]
[1765588356148,1.14685576,90408.0,90407.0,0.04902]
[1765588356738,1.14685576,90408.0,90407.0,0.021]
[1765588363061,0.78605576,90408.0,90407.0,0.021]
[1765588363257,1.14685576,90408.0,90407.0,0.021]
[1765588367065,0.78605576,90408.0,90407.0,0.021]
[1765588367258,1.14685576,90408.0,90407.0,0.021]
[1765588379370,0.07193,90399.0,90398.0,0.00016592]
[1765588379571,0.07193,90390.0,90389.0,0.0655324]
[1765588379777,0.106425,90390.0,90389.0,0.02708]
[1765588379981,0.05538,90363.0,90362.0,0.09789244]
[1765588380170,0.4396128,90363.0,90362.0,0.05447]
[1765588381466,0.4546128,90363.0,90362.0,0.05547]
[1765588382171,0.4396128,90363.0,90362.0,0.05447]
[1765588382373,0.4586128,90363.0,90362.0,0.05647]
[1765588383866,0.45899029,90363.0,90362.0,0.05647]
[1765588384470,0.43518,90363.0,90362.0,0.05647]
[1765588385168,0.43518,90363.0,90362.0,0.45647]
[1765588388483,0.79598,90363.0,90362.0,0.45647]
[1765588393470,0.07438,90363.0,90362.0,0.45647]
[1765588393674,0.79598,90363.0,90362.0,0.45647]
[1765588398872,0.79598,90363.0,90362.0,0.05647]
[1765588400089,0.79598,90363.0,90362.0,0.45647]
[1765588406294,0.82035635,90363.0,90362.0,0.45647]
[1765588425511,0.09875635,90363.0,90362.0,0.45647]
[1765588425711,0.82035635,90363.0,90362.0,0.45647]
[1765588426413,0.09875635,90363.0,90362.0,0.45647]
[1765588426615,0.82035635,90363.0,90362.0,0.45647]
[1765588428818,0.82035635,90363.0,90362.0,0.05647]
[1765588430215,0.82035635,90363.0,90362.0,0.45647]
[1765588430911,0.83682635,90363.0,90362.0,0.45647]
[1765588434115,0.11522635,90363.0,90362.0,0.45647]
[1765588434606,0.47602635,90363.0,90362.0,0.45647]
[1765588454430,0.11522635,90363.0,90362.0,0.45647]
[1765588454632,0.47602635,90363.0,90362.0,0.45647]
[1765588458732,0.47602635,90363.0,90362.0,0.05647]
[1765588460246,0.47602635,90363.0,90362.0,0.45647]
[1765588463850,0.11522635,90363.0,90362.0,0.45647]
[1765588467348,0.11522635,90363.0,90362.0,0.05647]
[1765588469954,0.11522635,90363.0,90362.0,0.05522]
[1765588476648,0.04337635,90363.0,90362.0,0.06752]
[1765588476849,0.04337635,90363.0,90362.0,0.05522]
[1765588477255,0.07047635,90363.0,90362.0,0.05522]
[1765588477647,0.09824635,90363.0,90362.0,0.05522]
[1765588480751,0.09824635,90363.0,90362.0,0.17712]
[1765588493269,0.09772445,90363.0,90362.0,0.17712]
[1765588497075,0.09772445,90363.0,90362.0,0.05522]
[1765588497972,0.11441445,90363.0,90362.0,0.05522]
[1765588500570,0.11441445,90363.0,90362.0,0.11496684]
[1765588501675,0.11441445,90363.0,90362.0,0.80552684]
[1765588506574,0.11441445,90363.0,90362.0,0.74578]
[1765588512185,0.11441445,90363.0,90362.0,0.80554676]
[1765588519885,0.11441445,90363.0,90362.0,0.74578]
[1765588523994,0.11441445,90363.0,90362.0,0.05522]
[1765588524291,0.11441445,90363.0,90362.0,0.70098]
[1765588536702,0.11441445,90363.0,90362.0,0.05522]
[1765588536904,0.11441445,90363.0,90362.0,0.6623]
[1765588537401,0.11441445,90363.0,90362.0,0.74578]
[1765588537698,0.11441445,90363.0,90362.0,0.05522]
[1765588537903,0.04285445,90363.0,90362.0,0.74578]
[1765588538093,0.07245445,90363.0,90362.0,0.74578]
[1765588538396,0.07245445,90363.0,90362.0,0.05522]
[1765588538605,0.07245445,90363.0,90362.0,0.74578]
[1765588539505,0.07245445,90363.0,90362.0,0.05522]
[1765588539701,0.07245445,90363.0,90362.0,0.74578]
[1765588540004,0.07245445,90363.0,90362.0,0.05522]
[1765588540504,0.07245445,90363.0,90362.0,0.66246]
[1765588540699,0.10144445,90363.0,90362.0,0.66246]
[1765588541097,0.10144445,90363.0,90362.0,0.74578]
[1765588541604,0.10144445,90363.0,90362.0,0.05522]
[1765588541804,0.10144445,90363.0,90362.0,0.74578]
[1765588555612,0.10144445,90363.0,90362.0,1.10658]
[1765588556002,0.10144445,90363.0,90362.0,0.74578]
[1765588556210,0.10144445,90363.0,90362.0,1.10658]
[1765588556407,0.10144445,90363.0,90362.0,0.74578]
[1765588556610,0.10144445,90363.0,90362.0,1.10658]
[1765588564922,0.07759,90363.0,90362.0,1.10658]
[1765588565732,0.10131965,90363.0,90362.0,1.10658]
[1765588568328,0.11804965,90363.0,90362.0,1.10658]
[1765588572437,0.11804965,90363.0,90362.0,0.74578]
[1765588572630,0.11804965,90363.0,90362.0,1.10658]
[1765588580545,0.11804965,90363.0,90362.0,0.74578]
[1765588580846,0.11804965,90363.0,90362.0,1.10658]
[1765588582337,0.11804965,90363.0,90362.0,0.74578]
[1765588582738,0.11804965,90363.0,90362.0,1.10658]
[1765588584150,0.11789725,90363.0,90362.0,1.10658]
[1765588584345,0.11789725,90363.0,90362.0,0.74578]
[1765588584648,0.11789725,90363.0,90362.0,1.10658]
[1765588587451,0.11789725,90363.0,90362.0,0.74578]
[1765588587948,0.11789725,90363.0,90362.0,1.10658]
[1765588593556,0.11789725,90363.0,90362.0,0.74578]
[1765588593756,0.10116725,90363.0,90362.0,1.10658]
[1765588599463,0.10116725,90363.0,90362.0,0.74578]
[1765588599647,0.10116725,90363.0,90362.0,1.10658]
[1765588601957,0.11913725,90363.0,90362.0,1.10658]
[1765588607967,0.11913725,90363.0,90362.0,1.10654]
[1765588612467,0.10116725,90363.0,90362.0,1.10654]
[1765588616664,0.10116725,90363.0,90362.0,0.74574]
[1765588616863,0.10116725,90363.0,90362.0,1.10654]
[1765588621473,0.10158755,90363.0,90362.0,1.10654]
[1765588631575,0.04299755,90363.0,90362.0,1.10654]
[1765588631978,0.07263755,90363.0,90362.0,1.10654]
[1765588636500,0.07263755,90363.0,90362.0,0.74574]
[1765588636703,0.07263755,90363.0,90362.0,1.10654]
[1765588637600,0.07263755,90363.0,90362.0,0.74574]
[1765588637798,0.07263755,90363.0,90362.0,1.10654]
[1765588639206,0.08370305,90363.0,90362.0,1.10654]
[1765588639806,0.13074305,90363.0,90362.0,0.41602]
[1765588640006,0.13074305,90363.0,90362.0,0.05522]
[1765588640211,0.13074305,90363.0,90362.0,0.63982]
[1765588643103,0.13074305,90363.0,90362.0,0.05522]
[1765588645803,0.49154305,90363.0,90362.0,0.05522]
[1765588669433,0.49137541,90363.0,90362.0,0.05522]
[1765588673435,0.11950991,90363.0,90362.0,0.05522]
[1765588683944,0.04282991,90363.0,90362.0,0.05522]
[1765588684240,0.07093991,90363.0,90362.0,0.41602]
[1765588684740,0.10041991,90363.0,90362.0,0.41602]
[1765588685241,0.10041991,90363.0,90362.0,0.47577217]
[1765588688437,0.10041991,90363.0,90362.0,0.11497217]
[1765588688747,0.10041991,90363.0,90362.0,0.47577217]
[1765588692351,0.07659,90363.0,90362.0,0.47577217]
[1765588692953,0.10038111,90363.0,90362.0,0.47577217]